[Event "Slovakia Open Piestany-A 2022"]
[Site "Piestany"]
[Date "2022.07.15"]
[Round "5.17"]
[White "Svana, Peter"]
[Black "Brhel, Jan"]
[Result "1-0"]
[ECO "A33"]
[WhiteElo "2280"]
[BlackElo "2018"]
[Annotator "ChessBase"]
[PlyCount "65"]
[EventDate "2022.07.12"]
[EventType "swiss"]
[EventCountry "SVK"]
[SourceTitle "playchess.com"]
[Source "ChessBase"]
[SourceQuality "1"]
[TimeControl "40/5400+30:1800+30"]

1. Nf3 {[%emt 0:00:05]} Nf6 {[%emt 0:00:53]} 2. d4 {[%emt 0:00:07]} e6 {[%emt 0:01:04]} 3. g3 {[%emt 0:01:44]} c5 {[%emt 0:03:54]} 4. c4 {[%emt 0:00:13]} cxd4 {[%emt 0:02:53]} 5. Nxd4 {[%emt 0:00:27]} Nc6 {[%emt 0:04:31]} 6. Bg2 {[%emt 0:00:24]} Bb4+ {[%emt 0:01:00]} 7. Nc3 {[%emt 0:01:16]} O-O {[%emt 0:01:34]} 8. O-O {[%emt 0:00:10]} a6 {[%emt 0:09:59]} 9. Nb3 {[%emt 0:01:16]} d6 {[%emt 0:02:44]} 10. Na4 {[%emt 0:05:46]} Ne5 {[%emt 0:06:13]} 11. a3 {[%emt 0:01:09]} Ba5 {[%emt 0:00:23]} 12. Nxa5 {[%emt 0:07:32]} Qxa5 {[%emt 0:00:08]} 13. b3 {[%emt 0:01:35]} Bd7 {[%emt 0:04:00]} 14. Bd2 {[%emt 0:03:27]} Qc7 {[%emt 0:00:24]} 15. Bb4 {[%emt 0:00:40]} Bxa4 {[%emt 0:07:34]} 16. Bxd6 {[%emt 0:00:18]} Bxb3 {[%emt 0:00:56]} 17. Bxc7 {[%emt 0:00:44]} Bxd1 {[%emt 0:00:09]} 18. Rfxd1 {[%emt 0:01:01]} Nxc4 {[%emt 0:13:36]} 19. Rd4 {[%emt 0:00:43]} b5 {[%emt 0:01:55]} 20. Bxa8 {[%emt 0:00:20]} Rxa8 {[%emt 0:00:03]} 21. a4 {[%emt 0:06:56]} Rc8 {[%emt 0:02:25]} 22. axb5 {[%emt 0:02:38]} axb5 {[%emt 0:00:10]} 23. Rb1 {[%emt 0:01:00]} Ne8 {[%emt 0:02:03]} 24. Rd8 {[%emt 0:03:51]} Rxd8 {[%emt 0:00:10]} 25. Bxd8 {[%emt 0:00:04]} Ned6 {[%emt 0:04:43]} 26. Be7 {[%emt 0:00:58]} f6 {[%emt 0:00:27]} 27. Rd1 {[%emt 0:00:14]} Nf5 {[%emt 0:00:30]} 28. Bb4 {[%emt 0:00:43]} e5 {[%emt 0:00:45]} 29. e3 {[%emt 0:01:39]} e4 {[%emt 0:04:54]} 30. Rd5 {[%emt 0:01:07]} Ne5 {[%emt 0:00:04]} 31. Rxb5 {[%emt 0:01:05]} h5 {[%emt 0:00:45]} 32. Kg2 {[%emt 0:00:59]} g6 {[%emt 0:00:27]} 33. Bc3 {[%emt 0:00:26]} 1-0

[Event "Slovakia Open Piestany-A 2022"]
[Site "Piestany"]
[Date "2022.07.15"]
[Round "5.18"]
[White "Hrbek, Stepan"]
[Black "Warchol, Kamil"]
[Result "1-0"]
[ECO "B80"]
[WhiteElo "2272"]
[BlackElo "2121"]
[Annotator "ChessBase"]
[PlyCount "139"]
[EventDate "2022.07.12"]
[EventType "swiss"]
[EventCountry "SVK"]
[SourceTitle "playchess.com"]
[Source "ChessBase"]
[SourceQuality "1"]
[TimeControl "40/5400+30:1800+30"]

1. e4 {[%emt 0:00:04]} c5 {[%emt 0:00:05]} 2. Nf3 {[%emt 0:00:12]} e6 {[%emt 0:00:16]} 3. d4 {[%emt 0:00:32]} cxd4 {[%emt 0:00:08]} 4. Nxd4 {[%emt 0:00:07]} Nc6 {[%emt 0:00:21]} 5. Nc3 {[%emt 0:00:09]} Qc7 {[%emt 0:00:06]} 6. g3 {[%emt 0:03:09]} a6 {[%emt 0:02:03]} 7. Bg2 {[%emt 0:00:09]} d6 {[%emt 0:00:55]} 8. O-O {[%emt 0:01:40]} Be7 {[%emt 0:03:12]} 9. Nxc6 {[%emt 0:03:12]} bxc6 {[%emt 0:00:45]} 10. Re1 {[%emt 0:00:57]} e5 {[%emt 0:01:40]} 11. Na4 {[%emt 0:01:59]} Be6 {[%emt 0:01:29]} 12. b3 {[%emt 0:01:34]} Nf6 {[%emt 0:01:06]} 13. c4 {[%emt 0:01:01]} O-O {[%emt 0:02:11]} 14. Bb2 {[%emt 0:16:46]} Nd7 {[%emt 0:02:59]} 15. f4 {[%emt 0:02:34]} f6 {[%emt 0:10:05]} 16. Kh1 {[%emt 0:05:43]} a5 {[%emt 0:08:35]} 17. Rc1 {[%emt 0:14:58]} Rfd8 {[%emt 0:14:53]} 18. Qh5 {[%emt 0:09:00]} Bf7 {[%emt 0:09:24]} 19. Qg4 {[%emt 0:00:40]} Ra6 {[%emt 0:08:31]} 20. Red1 {[%emt 0:02:18]} Raa8 {[%emt 0:05:19]} 21. Bh3 {[%emt 0:01:48]} Rab8 {[%emt 0:05:47]} 22. Qe2 {[%emt 0:04:28]} Nf8 {[%emt 0:03:38]} 23. Rf1 {[%emt 0:07:52]} Ne6 {[%emt 0:02:31]} 24. Qe3 {[%emt 0:07:14]} Kh8 {[%emt 0:05:09]} 25. Bf5 {[%emt 0:07:30]} Bg8 {[%emt 0:00:49]} 26. Bh3 {[%emt 0:00:36]} Bf8 {[%emt 0:03:22]} 27. Bg4 {[%emt 0:00:39]} Be7 {[%emt 0:00:50]} 28. Rfd1 {[%emt 0:00:25]} Bf8 {[%emt 0:01:14]} 29. Rd2 {[%emt 0:02:59]} Be7 {[%emt 0:01:18]} 30. Rcd1 {[%emt 0:01:04]} Bf7 {[%emt 0:00:53]} 31. Bxe6 {[%emt 0:00:42]} Bxe6 {[%emt 0:00:02]} 32. f5 {[%emt 0:00:10]} Bf7 {[%emt 0:01:07]} 33. Nc3 {[%emt 0:00:16]} Ra8 {[%emt 0:01:16]} 34. Na4 {[%emt 0:01:50]} Rab8 {[%emt 0:01:02]} 35. Ba3 {[%emt 0:01:30]} Bh5 {[%emt 0:01:18]} 36. Rg1 {[%emt 0:00:24]} Bf7 {[%emt 0:00:15]} 37. Qf3 {[%emt 0:01:25]} d5 {[%emt 0:02:34]} 38. Bxe7 {[%emt 0:00:06]} Qxe7 {[%emt 0:00:01]} 39. cxd5 {[%emt 0:00:44]} cxd5 {[%emt 0:00:02]} 40. exd5 {[%emt 0:00:08]} e4 {[%emt 0:01:33]} 41. Qe3 {[%emt 0:05:19]} Rxd5 {[%emt 0:08:43]} 42. Rxd5 {[%emt 0:00:48]} Bxd5 {[%emt 0:00:06]} 43. Rd1 {[%emt 0:02:03]} Bc6 {[%emt 0:02:58]} 44. Nc3 {[%emt 0:02:59]} Re8 {[%emt 0:06:27]} 45. Kg1 {[%emt 0:03:07]} Qe5 {[%emt 0:00:45]} 46. g4 {[%emt 0:00:28]} Qb8 {[%emt 0:06:06]} 47. Rd2 {[%emt 0:01:49]} Qb4 {[%emt 0:00:55]} 48. Kf2 {[%emt 0:00:27]} Qe7 {[%emt 0:00:52]} 49. Ne2 {[%emt 0:02:28]} Qe5 {[%emt 0:00:57]} 50. Nf4 {[%emt 0:01:03]} Ba8 {[%emt 0:01:12]} 51. Rd4 {[%emt 0:01:34]} Rc8 {[%emt 0:01:53]} 52. Qd2 {[%emt 0:00:31]} Re8 {[%emt 0:02:59]} 53. Ke3 {[%emt 0:00:50]} Qc7 {[%emt 0:00:58]} 54. Ne6 {[%emt 0:00:36]} Qb6 {[%emt 0:00:18]} 55. Qc3 {[%emt 0:00:46]} h6 {[%emt 0:02:34]} 56. Qc7 {[%emt 0:00:22]} Qxc7 {[%emt 0:01:14]} 57. Nxc7 {[%emt 0:00:08]} Rc8 {[%emt 0:00:02]} 58. Nxa8 {[%emt 0:00:45]} Rxa8 {[%emt 0:00:01]} 59. Rd7 {[%emt 0:03:20]} a4 {[%emt 0:01:12]} 60. b4 {[%emt 0:00:24]} Rc8 {[%emt 0:00:50]} 61. b5 {[%emt 0:02:18]} Rb8 {[%emt 0:00:42]} 62. Rd5 {[%emt 0:00:08]} a3 {[%emt 0:00:02]} 63. Kxe4 {[%emt 0:00:27]} Kh7 {[%emt 0:00:20]} 64. Kd3 {[%emt 0:00:37]} h5 {[%emt 0:00:25]} 65. gxh5 {[%emt 0:00:30]} Kh6 {[%emt 0:00:04]} 66. Kc4 {[%emt 0:00:29]} Kxh5 {[%emt 0:00:06]} 67. Kb4 {[%emt 0:01:43]} g5 {[%emt 0:01:01]} 68. Ka5 {[%emt 0:01:15]} Kh4 {[%emt 0:00:10]} 69. b6 {[%emt 0:00:59]} Kh3 {[%emt 0:00:05]} 70. Rd2 {[%emt 0:00:06]} 1-0

[Event "Slovakia Open Piestany-A 2022"]
[Site "Piestany"]
[Date "2022.07.15"]
[Round "5.19"]
[White "Palchuk, Andrii"]
[Black "Walter, Ema"]
[Result "1-0"]
[ECO "E11"]
[WhiteElo "2248"]
[BlackElo "2000"]
[Annotator "ChessBase"]
[PlyCount "69"]
[EventDate "2022.07.12"]
[EventType "swiss"]
[EventCountry "SVK"]
[SourceTitle "playchess.com"]
[Source "ChessBase"]
[SourceQuality "1"]
[TimeControl "40/5400+30:1800+30"]

1. d4 {[%emt 0:02:22]} Nf6 {[%emt 0:00:16]} 2. c4 {[%emt 0:00:22]} e6 {[%emt 0:00:26]} 3. g3 {[%emt 0:00:12]} d5 {[%emt 0:00:07]} 4. Nf3 {[%emt 0:00:06]} Bb4+ {[%emt 0:00:13]} 5. Bd2 {[%emt 0:00:19]} Be7 {[%emt 0:00:12]} 6. Bg2 {[%emt 0:00:06]} c6 {[%emt 0:00:45]} 7. Qc2 {[%emt 0:05:28]} O-O {[%emt 0:02:42]} 8. O-O {[%emt 0:00:07]} b6 {[%emt 0:01:00]} 9. Bf4 {[%emt 0:01:05]} Nbd7 {[%emt 0:04:33]} 10. Nbd2 {[%emt 0:03:41]} Ba6 {[%emt 0:06:25]} 11. Rfd1 {[%emt 0:06:13]} Rc8 {[%emt 0:10:17]} 12. Rac1 {[%emt 0:12:04]} Bb7 {[%emt 0:08:02]} 13. e4 {[%emt 0:09:40]} dxc4 {[%emt 0:12:37]} 14. Nxc4 {[%emt 0:10:01]} c5 {[%emt 0:09:32]} 15. d5 {[%emt 0:02:16]} exd5 {[%emt 0:02:49]} 16. exd5 {[%emt 0:00:36]} Nxd5 {[%emt 0:11:27]} 17. Nfe5 {[%emt 0:04:46]} N7f6 {[%emt 0:03:27]} 18. Ne3 {[%emt 0:02:11]} c4 {[%emt 0:09:57]} 19. Nxd5 {[%emt 0:24:43]} Nxd5 {[%emt 0:01:54]} 20. Qb1 {[%emt 0:05:34]} Rc5 {[%emt 0:03:43]} 21. Be3 {[%emt 0:00:15]} Rc7 {[%emt 0:00:58]} 22. Rxd5 {[%emt 0:00:39]} Bxd5 {[%emt 0:00:13]} 23. Rd1 {[%emt 0:00:01]} Bf6 {[%emt 0:01:32]} 24. Rxd5 {[%emt 0:00:15]} Qc8 {[%emt 0:00:35]} 25. Bf4 {[%emt 0:01:09]} Bxe5 {[%emt 0:01:38]} 26. Bxe5 {[%emt 0:00:13]} Rc5 {[%emt 0:00:15]} 27. Bc3 {[%emt 0:00:50]} Rd8 {[%emt 0:00:50]} 28. Rxd8+ {[%emt 0:01:15]} Qxd8 {[%emt 0:00:01]} 29. Bf3 {[%emt 0:00:12]} Qe8 {[%emt 0:05:52]} 30. Qd1 {[%emt 0:00:16]} h6 {[%emt 0:00:58]} 31. Qd4 {[%emt 0:00:48]} f6 {[%emt 0:00:52]} 32. Bd5+ {[%emt 0:00:37]} Kh8 {[%emt 0:00:07]} 33. Bxc4 {[%emt 0:00:33]} Qc8 {[%emt 0:00:55]} 34. Bd3 {[%emt 0:00:57]} Rc7 {[%emt 0:00:54]} 35. Qe4 {[%emt 0:00:08]} 1-0

[Event "Slovakia Open Piestany-A 2022"]
[Site "Piestany"]
[Date "2022.07.15"]
[Round "5.20"]
[White "Mizicka, Matus"]
[Black "Domalchuk-Jonasson, Aleksandr"]
[Result "0-1"]
[ECO "C00"]
[WhiteElo "1915"]
[BlackElo "2244"]
[Annotator "ChessBase"]
[PlyCount "180"]
[EventDate "2022.07.12"]
[EventType "swiss"]
[EventCountry "SVK"]
[SourceTitle "playchess.com"]
[Source "ChessBase"]
[SourceQuality "1"]
[TimeControl "40/5400+30:1800+30"]

1. e4 {[%emt 0:00:04]} e6 {[%emt 0:02:53]} 2. b3 {[%emt 0:01:01]} d5 {[%emt 0:02:31]} 3. Bb2 {[%emt 0:00:07]} dxe4 {[%emt 0:01:52]} 4. Nc3 {[%emt 0:00:07]} Nf6 {[%emt 0:00:33]} 5. g4 {[%emt 0:00:10]} h6 {[%emt 0:06:43]} 6. Bg2 {[%emt 0:00:15]} Be7 {[%emt 0:04:37]} 7. Nxe4 {[%emt 0:07:00]} Nxe4 {[%emt 0:03:01]} 8. Bxe4 {[%emt 0:00:07]} Bf6 {[%emt 0:00:26]} 9. Bxf6 {[%emt 0:00:11]} Qxf6 {[%emt 0:00:07]} 10. Ne2 {[%emt 0:00:50]} h5 {[%emt 0:09:21]} 11. Nc3 {[%emt 0:04:04]} Nc6 {[%emt 0:05:53]} 12. Bxc6+ {[%emt 0:03:28]} bxc6 {[%emt 0:00:07]} 13. gxh5 {[%emt 0:00:44]} c5 {[%emt 0:04:39]} 14. Qe2 {[%emt 0:00:16]} Kf8 {[%emt 0:06:17]} 15. Rg1 {[%emt 0:05:30]} Bb7 {[%emt 0:06:31]} 16. Rg3 {[%emt 0:00:25]} Qf5 {[%emt 0:07:11]} 17. O-O-O {[%emt 0:03:15]} Rxh5 {[%emt 0:00:56]} 18. Qb5 {[%emt 0:02:49]} Bf3 {[%emt 0:01:14]} 19. Rdg1 {[%emt 0:01:19]} g6 {[%emt 0:00:36]} 20. Qd7 {[%emt 0:01:38]} Qf4 {[%emt 0:06:04]} 21. Qd3 {[%emt 0:02:06]} Bc6 {[%emt 0:02:32]} 22. Rxg6 {[%emt 0:21:14]} fxg6 {[%emt 0:01:56]} 23. Qxg6 {[%emt 0:00:05]} Qf7 {[%emt 0:00:20]} 24. Qg3 {[%emt 0:04:33]} Rd8 {[%emt 0:02:31]} 25. Qe3 {[%emt 0:01:27]} Rd4 {[%emt 0:01:27]} 26. Ne2 {[%emt 0:02:37]} Re4 {[%emt 0:06:01]} 27. Qd3 {[%emt 0:02:07]} Qf6 {[%emt 0:04:41]} 28. c3 {[%emt 0:01:04]} Rhe5 {[%emt 0:02:03]} 29. f4 {[%emt 0:01:28]} Rf5 {[%emt 0:06:03]} 30. Ng3 {[%emt 0:03:16]} Rfxf4 {[%emt 0:01:44]} 31. Nh5 {[%emt 0:01:44]} Rf3 {[%emt 0:01:28]} 32. Qa6 {[%emt 0:02:03]} Qf7 {[%emt 0:01:28]} 33. Qxc6 {[%emt 0:05:41]} Rf1+ {[%emt 0:01:18]} 34. Kb2 {[%emt 0:00:15]} Rxg1 {[%emt 0:00:44]} 35. Qxc5+ {[%emt 0:00:05]} Ke8 {[%emt 0:00:43]} 36. Qc6+ {[%emt 0:00:35]} Kf8 {[%emt 0:00:20]} 37. Qc5+ {[%emt 0:01:27]} Ke8 {[%emt 0:00:02]} 38. Qc6+ {[%emt 0:00:31]} Kd8 {[%emt 0:00:42]} 39. Qxe4 {[%emt 0:00:19]} Qf1 {[%emt 0:01:05]} 40. Ka3 {[%emt 0:03:06]} Qa6+ {[%emt 0:00:47]} 41. Kb2 {[%emt 0:30:44]} Qf1 {[%emt 0:01:47]} 42. Ka3 {[%emt 0:00:00]} Qc1+ {[%emt 0:07:53]} 43. Kb4 {[%emt 0:00:00]} Qxd2 {[%emt 0:06:30]} 44. Qxe6 {[%emt 0:00:00]} Re1 {[%emt 0:05:51]} 45. Qf6+ {[%emt 0:00:00]} Kc8 {[%emt 0:02:52]} 46. Qf5+ {[%emt 0:00:00]} Qd7 {[%emt 0:02:01]} 47. Qxd7+ {[%emt 0:00:00]} Kxd7 {[%emt 0:00:01]} 48. Ng3 {[%emt 0:00:00]} Kc6 {[%emt 0:00:21]} 49. a4 {[%emt 0:00:00]} Kb6 {[%emt 0:00:09]} 50. Kc4 {[%emt 0:00:00]} Rg1 {[%emt 0:01:46]} 51. Nf5 {[%emt 0:00:00]} Rf1 {[%emt 0:00:23]} 52. Nd4 {[%emt 0:00:00]} Rf2 {[%emt 0:00:04]} 53. b4 {[%emt 0:04:36]} Rxh2 {[%emt 0:00:22]} 54. a5+ {[%emt 0:01:02]} Kb7 {[%emt 0:00:33]} 55. Kb3 {[%emt 0:03:25]} Rh1 {[%emt 0:01:35]} 56. c4 {[%emt 0:01:32]} Rh3+ {[%emt 0:01:35]} 57. Kc2 {[%emt 0:02:49]} Kc8 {[%emt 0:02:32]} 58. a6 {[%emt 0:00:57]} c5 {[%emt 0:02:14]} 59. Nc6 {[%emt 0:01:35]} Kc7 {[%emt 0:00:52]} 60. b5 {[%emt 0:01:23]} Kb6 {[%emt 0:00:12]} 61. Ne5 {[%emt 0:01:50]} Rh5 {[%emt 0:00:26]} 62. Nc6 {[%emt 0:00:58]} Rh6 {[%emt 0:00:28]} 63. Ne5 {[%emt 0:00:11]} Rd6 {[%emt 0:00:36]} 64. Nd3 {[%emt 0:00:42]} Rd4 {[%emt 0:00:27]} 65. Kc3 {[%emt 0:00:07]} Re4 {[%emt 0:00:05]} 66. Kb3 {[%emt 0:00:36]} Re3 {[%emt 0:00:38]} 67. Kc2 {[%emt 0:00:13]} Ka5 {[%emt 0:01:02]} 68. Nxc5 {[%emt 0:04:51]} Kb4 {[%emt 0:00:08]} 69. Nd7 {[%emt 0:01:09]} Re7 {[%emt 0:00:30]} 70. Nb8 {[%emt 0:07:11]} Kxc4 {[%emt 0:00:10]} 71. Nc6 {[%emt 0:00:28]} Rc7 {[%emt 0:00:13]} 72. Ne5+ {[%emt 0:00:37]} Kxb5+ {[%emt 0:00:07]} 73. Kb3 {[%emt 0:00:19]} Kxa6 {[%emt 0:00:08]} 74. Kb4 {[%emt 0:00:29]} Rb7+ {[%emt 0:00:29]} 75. Ka4 {[%emt 0:00:15]} Re7 {[%emt 0:00:06]} 76. Nd3 {[%emt 0:00:47]} Re4+ {[%emt 0:00:09]} 77. Kb3 {[%emt 0:00:08]} Kb5 {[%emt 0:00:06]} 78. Nc1 {[%emt 0:00:49]} Re3+ {[%emt 0:00:06]} 79. Kb2 {[%emt 0:00:24]} Kc4 {[%emt 0:00:11]} 80. Kc2 {[%emt 0:00:32]} Rh3 {[%emt 0:00:15]} 81. Kb2 {[%emt 0:00:26]} Rh2+ {[%emt 0:00:33]} 82. Kb1 {[%emt 0:00:46]} Kc3 {[%emt 0:01:36]} 83. Na2+ {[%emt 0:00:19]} Kb3 {[%emt 0:00:27]} 84. Nc1+ {[%emt 0:00:08]} Ka3 {[%emt 0:00:01]} 85. Nd3 {[%emt 0:00:17]} Rd2 {[%emt 0:00:46]} 86. Nc1 {[%emt 0:00:58]} Rb2+ {[%emt 0:00:33]} 87. Ka1 {[%emt 0:00:15]} Rb8 {[%emt 0:00:03]} 88. Ne2 {[%emt 0:00:59]} Kb3 {[%emt 0:02:25]} 89. Kb1 {[%emt 0:00:16]} Rb6 {[%emt 0:00:10]} 90. Nc1+ {[%emt 0:00:44]} Kc3+ {[%emt 0:00:06]} 0-1

[Event "Slovakia Open Piestany-A 2022"]
[Site "Piestany"]
[Date "2022.07.15"]
[Round "5.21"]
[White "Krasenkow, Michal"]
[Black "Gyerpal, Adrian"]
[Result "1-0"]
[ECO "A14"]
[WhiteElo "2569"]
[BlackElo "2193"]
[Annotator "ChessBase"]
[PlyCount "73"]
[EventDate "2022.07.12"]
[EventType "swiss"]
[EventCountry "SVK"]
[SourceTitle "playchess.com"]
[Source "ChessBase"]
[SourceQuality "1"]
[TimeControl "40/5400+30:1800+30"]

1. Nf3 {[%emt 0:00:05]} Nf6 {[%emt 0:01:30]} 2. c4 {[%emt 0:00:23]} e6 {[%emt 0:00:28]} 3. g3 {[%emt 0:01:31]} d5 {[%emt 0:00:38]} 4. Bg2 {[%emt 0:00:28]} Be7 {[%emt 0:01:36]} 5. d4 {[%emt 0:01:50]} O-O {[%emt 0:00:51]} 6. Nbd2 {[%emt 0:00:20]} b6 {[%emt 0:04:40]} 7. b3 {[%emt 0:00:08]} Bb7 {[%emt 0:01:19]} 8. Bb2 {[%emt 0:00:06]} c5 {[%emt 0:03:16]} 9. e3 {[%emt 0:00:19]} Nc6 {[%emt 0:04:00]} 10. O-O {[%emt 0:00:09]} Rc8 {[%emt 0:00:39]} 11. Qe2 {[%emt 0:04:17]} cxd4 {[%emt 0:07:55]} 12. exd4 {[%emt 0:00:11]} Qc7 {[%emt 0:00:49]} 13. Rac1 {[%emt 0:01:03]} Rfd8 {[%emt 0:01:03]} 14. Rfd1 {[%emt 0:03:22]} Qb8 {[%emt 0:02:50]} 15. Bh3 {[%emt 0:02:55]} h6 {[%emt 0:07:53]} 16. Nf1 {[%emt 0:01:45]} Re8 {[%emt 0:11:06]} 17. Ne3 {[%emt 0:04:02]} Rcd8 {[%emt 0:01:09]} 18. Ne5 {[%emt 0:04:34]} Nxe5 {[%emt 0:10:22]} 19. dxe5 {[%emt 0:00:09]} Ne4 {[%emt 0:01:02]} 20. cxd5 {[%emt 0:00:32]} exd5 {[%emt 0:01:20]} 21. Nf5 {[%emt 0:04:59]} Bc5 {[%emt 0:04:57]} 22. Qg4 {[%emt 0:01:31]} Ng5 {[%emt 0:01:52]} 23. Bg2 {[%emt 0:03:55]} d4 {[%emt 0:10:23]} 24. h4 {[%emt 0:29:30]} Bxg2 {[%emt 0:00:41]} 25. Kxg2 {[%emt 0:02:00]} Qb7+ {[%emt 0:01:41]} 26. f3 {[%emt 0:00:19]} Rxe5 {[%emt 0:01:58]} 27. hxg5 {[%emt 0:06:32]} Re2+ {[%emt 0:01:52]} 28. Kh3 {[%emt 0:00:07]} h5 {[%emt 0:02:24]} 29. Qf4 {[%emt 0:00:58]} Rxb2 {[%emt 0:01:54]} 30. Rxc5 {[%emt 0:03:54]} bxc5 {[%emt 0:00:38]} 31. Qe5 {[%emt 0:00:08]} f6 {[%emt 0:01:05]} 32. gxf6 {[%emt 0:00:51]} Qf7 {[%emt 0:03:22]} 33. fxg7 {[%emt 0:00:32]} Kh7 {[%emt 0:00:09]} 34. Re1 {[%emt 0:06:51]} Rxa2 {[%emt 0:02:57]} 35. Qxc5 {[%emt 0:04:20]} Rg8 {[%emt 0:02:33]} 36. Re7 {[%emt 0:02:18]} Qg6 {[%emt 0:02:06]} 37. Nh4 {[%emt 0:01:38]} 1-0

[Event "Slovakia Open Piestany-A 2022"]
[Site "Piestany"]
[Date "2022.07.15"]
[Round "5.22"]
[White "Leszko, Bence"]
[Black "Drtina, Milan"]
[Result "1-0"]
[ECO "C53"]
[WhiteElo "2241"]
[BlackElo "2167"]
[Annotator "ChessBase"]
[PlyCount "75"]
[EventDate "2022.07.12"]
[EventType "swiss"]
[EventCountry "SVK"]
[SourceTitle "playchess.com"]
[Source "ChessBase"]
[SourceQuality "1"]
[TimeControl "40/5400+30:1800+30"]

1. e4 {[%emt 0:19:13]} e5 {[%emt 0:01:15]} 2. Nf3 {[%emt 0:00:08]} Nc6 {[%emt 0:00:26]} 3. Bc4 {[%emt 0:00:30]} Bc5 {[%emt 0:04:45]} 4. c3 {[%emt 0:00:00]} d6 {[%emt 0:01:54]} 5. d4 {[%emt 0:00:02]} exd4 {[%emt 0:00:11]} 6. cxd4 {[%emt 0:00:10]} Bb4+ {[%emt 0:00:52]} 7. Nc3 {[%emt 0:02:27]} Nf6 {[%emt 0:00:31]} 8. d5 {[%emt 0:05:59]} Bxc3+ {[%emt 0:00:18]} 9. bxc3 {[%emt 0:00:04]} Ne7 {[%emt 0:01:10]} 10. Bd3 {[%emt 0:02:04]} Ng6 {[%emt 0:00:29]} 11. Nd4 {[%emt 0:01:23]} O-O {[%emt 0:00:34]} 12. O-O {[%emt 0:00:40]} Re8 {[%emt 0:04:01]} 13. Re1 {[%emt 0:03:02]} Bd7 {[%emt 0:03:16]} 14. Rb1 {[%emt 0:00:26]} c5 {[%emt 0:02:37]} 15. Nb5 {[%emt 0:03:50]} c4 {[%emt 0:04:51]} 16. Bc2 {[%emt 0:05:22]} Bxb5 {[%emt 0:02:40]} 17. Rxb5 {[%emt 0:00:07]} Qc8 {[%emt 0:00:14]} 18. h3 {[%emt 0:02:46]} Nd7 {[%emt 0:02:31]} 19. Rb4 {[%emt 0:02:32]} a6 {[%emt 0:02:54]} 20. a4 {[%emt 0:01:40]} Rb8 {[%emt 0:00:22]} 21. Be3 {[%emt 0:05:04]} b5 {[%emt 0:00:30]} 22. Qb1 {[%emt 0:02:02]} Nc5 {[%emt 0:01:47]} 23. axb5 {[%emt 0:04:42]} axb5 {[%emt 0:00:29]} 24. Rxb5 {[%emt 0:00:21]} Rxb5 {[%emt 0:00:27]} 25. Qxb5 {[%emt 0:00:31]} Nxe4 {[%emt 0:00:33]} 26. Qb4 {[%emt 0:02:40]} Nf6 {[%emt 0:01:44]} 27. Rd1 {[%emt 0:02:42]} Qc7 {[%emt 0:01:38]} 28. Bb6 {[%emt 0:02:21]} Qb8 {[%emt 0:00:23]} 29. Ba4 {[%emt 0:00:41]} Re5 {[%emt 0:01:56]} 30. Bc6 {[%emt 0:01:58]} Nf4 {[%emt 0:01:13]} 31. Qa5 {[%emt 0:06:33]} N6xd5 {[%emt 0:04:29]} 32. Bxd5 {[%emt 0:00:49]} Ne2+ {[%emt 0:01:56]} 33. Kf1 {[%emt 0:00:35]} Nxc3 {[%emt 0:00:20]} 34. Qxc3 {[%emt 0:00:09]} Qxb6 {[%emt 0:00:12]} 35. Qxc4 {[%emt 0:00:15]} g6 {[%emt 0:00:47]} 36. Bxf7+ {[%emt 0:00:07]} Kg7 {[%emt 0:00:11]} 37. Bd5 {[%emt 0:00:12]} Qb2 {[%emt 0:04:46]} 38. Bf3 {[%emt 0:00:20]} 1-0

[Event "Slovakia Open Piestany-A 2022"]
[Site "Piestany"]
[Date "2022.07.15"]
[Round "5.23"]
[White "Mullick, Raahil"]
[Black "Tripodi, Enzo"]
[Result "1-0"]
[ECO "B08"]
[WhiteElo "2237"]
[BlackElo "2141"]
[Annotator "ChessBase"]
[PlyCount "69"]
[EventDate "2022.07.12"]
[EventType "swiss"]
[EventCountry "SVK"]
[SourceTitle "playchess.com"]
[Source "ChessBase"]
[SourceQuality "1"]
[TimeControl "40/5400+30:1800+30"]

1. e4 {[%emt 0:00:03]} d6 {[%emt 0:01:58]} 2. d4 {[%emt 0:00:08]} Nf6 {[%emt 0:00:05]} 3. Nc3 {[%emt 0:00:06]} g6 {[%emt 0:00:06]} 4. Nf3 {[%emt 0:00:06]} Bg7 {[%emt 0:00:17]} 5. Be3 {[%emt 0:00:11]} c6 {[%emt 0:00:19]} 6. Qd2 {[%emt 0:00:40]} b5 {[%emt 0:00:14]} 7. Bd3 {[%emt 0:00:08]} Nbd7 {[%emt 0:00:06]} 8. Bh6 {[%emt 0:01:03]} O-O {[%emt 0:04:56]} 9. Bxg7 {[%emt 0:00:54]} Kxg7 {[%emt 0:00:02]} 10. a4 {[%emt 0:02:25]} b4 {[%emt 0:01:14]} 11. Ne2 {[%emt 0:00:07]} a5 {[%emt 0:01:30]} 12. e5 {[%emt 0:01:17]} Nd5 {[%emt 0:03:22]} 13. h4 {[%emt 0:04:39]} dxe5 {[%emt 0:07:00]} 14. h5 {[%emt 0:01:23]} Rh8 {[%emt 0:03:38]} 15. dxe5 {[%emt 0:11:39]} Nc5 {[%emt 0:03:21]} 16. Bc4 {[%emt 0:02:01]} Ba6 {[%emt 0:21:54]} 17. Bxa6 {[%emt 0:00:55]} Rxa6 {[%emt 0:00:19]} 18. h6+ {[%emt 0:02:05]} Kf8 {[%emt 0:01:14]} 19. Ng5 {[%emt 0:00:50]} Qd7 {[%emt 0:01:51]} 20. Qd4 {[%emt 0:05:04]} Ne6 {[%emt 0:03:51]} 21. Nxe6+ {[%emt 0:00:11]} Qxe6 {[%emt 0:01:00]} 22. Nf4 {[%emt 0:00:28]} Qg4 {[%emt 0:00:38]} 23. Rh4 {[%emt 0:01:21]} Qc8 {[%emt 0:01:43]} 24. Nxd5 {[%emt 0:00:29]} cxd5 {[%emt 0:00:05]} 25. Qxd5 {[%emt 0:00:09]} f6 {[%emt 0:05:32]} 26. Rc4 {[%emt 0:03:21]} Qa8 {[%emt 0:00:44]} 27. e6 {[%emt 0:01:08]} Qe8 {[%emt 0:02:01]} 28. O-O-O {[%emt 0:01:33]} Rd6 {[%emt 0:00:19]} 29. Qb7 {[%emt 0:00:08]} Rxe6 {[%emt 0:02:15]} 30. Rc8 {[%emt 0:00:06]} Kf7 {[%emt 0:00:27]} 31. Rxe8 {[%emt 0:00:04]} Rxe8 {[%emt 0:00:03]} 32. Qd5 {[%emt 0:00:05]} Rc8 {[%emt 0:00:19]} 33. Re1 {[%emt 0:00:05]} Rcc6 {[%emt 0:00:04]} 34. Rxe6 {[%emt 0:00:04]} Rxe6 {[%emt 0:00:04]} 35. g4 {[%emt 0:00:03]} 1-0